bitfinex/quotes_BTCUSD_20251102
["timestamp","ask_amount","ask_price","bid_price","bid_amount"]
[1762088669088,0.31207677,110890.0,110880.0,4.823e-05]
[1762088669279,0.29291187,110890.0,110880.0,0.00204823]
[1762088669897,0.28791187,110890.0,110880.0,4.823e-05]
[1762088670114,0.29291187,110890.0,110880.0,0.00204823]
[1762088670496,0.31707677,110890.0,110880.0,0.00204823]
[1762088673716,0.29291187,110890.0,110880.0,0.00204823]
[1762088674312,0.31707677,110890.0,110880.0,0.00204823]
[1762088674657,0.31707101,110890.0,110880.0,0.00204823]
[1762088675075,0.34393352,110890.0,110880.0,0.00204823]
[1762088675213,0.37615338,110890.0,110880.0,0.00204823]
[1762088679077,0.37615338,110890.0,110880.0,0.02997823]
[1762088679280,0.25683447,110890.0,110880.0,0.05337823]
[1762088679485,0.25158488,110890.0,110880.0,0.05337823]
[1762088679966,0.25158488,110890.0,110880.0,0.23375341]
[1762088680171,0.32189079,110890.0,110880.0,0.23375341]
[1762088680391,0.32189079,110890.0,110880.0,0.05337823]
[1762088680596,0.32189079,110890.0,110880.0,0.23375341]
[1762088681420,0.32189079,110890.0,110880.0,0.05337823]
[1762088682859,0.32714614,110890.0,110880.0,0.00204823]
[1762088683401,0.35131104,110890.0,110880.0,0.00204823]
[1762088683609,0.3835309,110890.0,110880.0,0.00204823]
[1762088684237,0.35131104,110890.0,110880.0,0.00204823]
[1762088684439,0.3835309,110890.0,110880.0,0.00204823]
[1762088684645,0.41039341,110890.0,110880.0,0.00204823]
[1762088685482,0.41039525,110890.0,110880.0,0.00204823]
[1762088685822,0.37817539,110890.0,110880.0,0.00204823]
[1762088687810,0.41039525,110890.0,110880.0,0.00204823]
[1762088689012,0.38623035,110890.0,110880.0,0.00204823]
[1762088689228,0.43456015,110890.0,110880.0,0.00204823]
[1762088691415,0.38623035,110890.0,110880.0,0.00204823]
[1762088692461,0.43456015,110890.0,110880.0,0.00204823]
[1762088693301,0.38623035,110890.0,110880.0,0.00204823]
[1762088693508,0.43456015,110890.0,110880.0,0.00204823]
[1762088694573,0.38623035,110890.0,110880.0,0.00204823]
[1762088695429,0.43456015,110890.0,110880.0,0.00204823]
[1762088695679,0.41778991,110890.0,110880.0,0.00204823]
[1762088695889,0.43459404,110890.0,110880.0,0.00204823]
[1762088696294,0.40237418,110890.0,110880.0,0.00204823]
[1762088696761,3.39737418,110890.0,110880.0,4.823e-05]
[1762088696983,3.34704438,110890.0,110880.0,4.823e-05]
[1762088697192,0.18037518,110880.0,110870.0,0.00021877]
[1762088697376,0.37825156,110880.0,110870.0,0.00021877]
[1762088697610,0.38256718,110880.0,110870.0,0.00021877]
[1762088697812,0.38618268,110880.0,110870.0,0.00021877]
[1762088698262,0.35392409,110880.0,110870.0,0.00021877]
[1762088698485,0.39017403,110880.0,110870.0,0.00021877]
[1762088698702,0.39517403,110880.0,110870.0,0.00221877]
[1762088699788,0.39517403,110880.0,110860.0,0.0004]
[1762088699789,0.18039144,110870.0,110860.0,0.0004]
[1762088699990,0.18040772,110860.0,110850.0,0.0002]
[1762088700197,0.22139357,110860.0,110850.0,0.0002]
[1762088700401,0.24072497,110860.0,110850.0,0.00063762]
[1762088700543,0.2678436,110860.0,110850.0,0.00063762]
[1762088700955,0.33220567,110860.0,110850.0,0.00063762]
[1762088701162,0.59725288,110860.0,110850.0,1e-08]
[1762088701371,0.86857483,110860.0,110850.0,1e-08]
[1762088701646,0.87057483,110860.0,110850.0,1e-08]
[1762088701852,0.18042399,110850.0,110840.0,1e-08]
[1762088702082,0.40215842,110850.0,110840.0,1e-08]
[1762088702300,0.41178933,110850.0,110840.0,1e-08]
[1762088702922,3.41178933,110850.0,110840.0,1e-08]
[1762088703771,3.38623578,110850.0,110840.0,1e-08]
[1762088704013,3.39723578,110850.0,110840.0,1e-08]
[1762088704423,3.34884789,110850.0,110840.0,1e-08]
[1762088705240,3.33984789,110850.0,110840.0,1e-08]
[1762088706279,3.36392855,110850.0,110840.0,1e-08]
[1762088706930,3.36754542,110850.0,110840.0,1e-08]
[1762088707653,3.37654542,110850.0,110840.0,1e-08]
[1762088707859,3.61309896,110850.0,110840.0,1e-08]
[1762088709325,3.61300345,110850.0,110840.0,1e-08]
[1762088709536,3.58892279,110850.0,110840.0,1e-08]
[1762088711328,3.63731068,110850.0,110840.0,1e-08]
[1762088713052,0.39044026,110840.0,110830.0,1e-08]
[1762088713272,3.53367174,110840.0,110830.0,1e-08]
[1762088713482,3.56153425,110840.0,110830.0,1e-08]
[1762088713692,3.56415168,110840.0,110830.0,0.00021889]
[1762088713901,3.56515168,110840.0,110830.0,0.00021889]
[1762088714124,3.53728917,110840.0,110830.0,0.00021889]
[1762088714304,3.53728917,110840.0,110830.0,0.00036406]
[1762088714462,3.53928917,110840.0,110830.0,0.00036406]
[1762088715468,3.57647307,110840.0,110830.0,0.00036406]
[1762088715705,3.54428917,110840.0,110830.0,0.00036406]
[1762088716315,3.57647307,110840.0,110830.0,0.00036406]
[1762088716519,3.57285564,110840.0,110830.0,0.00036406]
[1762088716950,0.18045655,110830.0,110820.0,0.0002]
[1762088717128,0.29004296,110830.0,110820.0,0.00028737]
[1762088717332,0.2868173,110830.0,110820.0,0.00028737]
[1762088717530,0.29581258,110830.0,110820.0,0.00028737]
[1762088718698,0.30181258,110830.0,110820.0,0.00028737]
[1762088719122,0.30381258,110830.0,110820.0,0.00028737]
[1762088722569,0.30381258,110830.0,110820.0,0.00050627]
[1762088722997,0.32786511,110830.0,110820.0,0.00050627]
[1762088724341,0.32186511,110830.0,110820.0,0.00050627]
[1762088724746,3.35904901,110830.0,110820.0,0.00050627]
[1762088725171,3.35404901,110830.0,110820.0,0.00050627]
[1762088725591,3.35704901,110830.0,110820.0,0.00050627]
[1762088725796,3.35904901,110830.0,110820.0,0.00050627]
[1762088726001,3.35704901,110830.0,110820.0,0.00050627]
[1762088726411,3.33499648,110830.0,110820.0,0.00050627]
[1762088727258,0.35911313,110830.0,110820.0,0.00050627]
[1762088727474,0.33499648,110830.0,110820.0,0.00050627]
[1762088728347,0.38338437,110830.0,110820.0,0.00050627]
[1762088729610,0.35120047,110830.0,110820.0,0.00050627]
[1762088737036,0.18048912,110810.0,110800.0,0.03563627]
[1762088737244,0.19719774,110810.0,110800.0,0.03612052]
[1762088737463,0.19719774,110810.0,110800.0,0.05175052]
[1762088737674,0.19719774,110810.0,110800.0,0.05218844]
[1762088737675,0.21652914,110810.0,110800.0,0.05218844]
[1762088737881,0.26187504,110810.0,110800.0,0.05218844]
[1762088738375,0.26787504,110810.0,110800.0,0.05218844]
[1762088738580,0.26987504,110810.0,110800.0,0.05218844]
[1762088740205,0.26997101,110810.0,110800.0,0.02772844]
[1762088740409,0.29416052,110810.0,110800.0,0.02772844]
[1762088741442,0.29416052,110810.0,110800.0,0.20823385]
[1762088741643,0.26997101,110810.0,110800.0,0.23269385]
[1762088741851,0.04413599,110810.0,110800.0,0.23269385]
[1762088742114,0.02480459,110810.0,110800.0,0.23269385]
[1762088744048,0.20529371,110810.0,110800.0,0.23269385]
[1762088744252,0.04413599,110810.0,110800.0,0.23269385]
[1762088744456,0.02480459,110810.0,110800.0,0.23269385]
[1762088745449,0.008,110810.0,110800.0,0.23269385]
[1762088745857,0.18848912,110810.0,110800.0,0.23269385]
[1762088746238,0.008,110810.0,110800.0,0.23269385]
[1762088749028,0.008,110810.0,110800.0,0.27523404]
[1762088752244,0.18848912,110810.0,110800.0,0.27523404]
[1762088752526,0.18848912,110810.0,110800.0,0.05218844]
[1762088753536,0.18848912,110810.0,110800.0,0.02772844]
[1762088754046,0.18848912,110810.0,110800.0,0.05218844]
[1762088756567,0.18848912,110810.0,110800.0,0.02772844]
[1762088756811,0.2078187,110810.0,110800.0,0.02772844]
[1762088757050,0.24906703,110810.0,110800.0,0.02772844]
[1762088759225,0.24906703,110810.0,110800.0,0.05118844]
[1762088764850,0.22973745,110810.0,110800.0,0.05118844]
[1762088765460,0.24907784,110810.0,110800.0,0.05118844]
[1762088765769,0.22973745,110810.0,110800.0,0.05118844]
[1762088766252,0.24907744,110810.0,110800.0,0.05118844]
[1762088769736,0.24907744,110810.0,110800.0,0.02772844]
[1762088771716,0.24907744,110810.0,110800.0,0.00092217]
[1762088772063,0.24907744,110810.0,110800.0,0.02801217]
[1762088773168,0.24707744,110810.0,110800.0,0.02801217]
[1762088773366,0.24107744,110810.0,110800.0,0.02801217]
[1762088773569,0.24307929,110810.0,110800.0,0.02801217]
[1762088773721,0.24807929,110810.0,110800.0,0.03201217]
[1762088773944,0.24807929,110810.0,110800.0,0.00492217]
[1762088776849,0.2749418,110810.0,110800.0,0.00492217]
[1762088780480,0.24807929,110810.0,110800.0,0.00492217]
[1762088780693,0.24807929,110810.0,110800.0,0.02035217]
[1762088783151,0.24807929,110810.0,110800.0,0.00492217]
[1762088783428,0.27225659,110810.0,110800.0,0.00492217]
[1762088786179,0.27225659,110810.0,110800.0,0.02116217]
[1762088788582,0.27225659,110810.0,110800.0,0.00492217]
[1762088788894,0.348188,110810.0,110800.0,0.00492217]
[1762088789069,0.3240107,110810.0,110800.0,0.00492217]
[1762088789277,0.35114527,110810.0,110800.0,0.00492217]
[1762088789686,0.34614527,110810.0,110800.0,0.00092217]
[1762088789851,0.34414527,110810.0,110800.0,0.00092217]
[1762088790050,0.34414527,110810.0,110800.0,0.00392217]
[1762088790051,0.35214527,110810.0,110800.0,0.00392217]
[1762088790253,0.35414527,110810.0,110800.0,0.00392217]
[1762088790476,0.37835071,110810.0,110800.0,0.00392217]
[1762088791524,0.35414527,110810.0,110800.0,0.00392217]
[1762088795007,0.1805217,110790.0,110780.0,1e-08]
[1762088795220,0.34589916,110790.0,110780.0,4.843e-05]
[1762088795458,0.35947244,110790.0,110780.0,4.843e-05]
[1762088795678,0.37133244,110790.0,110780.0,4.843e-05]
[1762088796024,0.34713597,110790.0,110780.0,4.843e-05]
[1762088796225,0.37931979,110790.0,110780.0,0.00204843]
[1762088796433,0.38126189,110790.0,110780.0,0.00204843]
[1762088796638,0.3712619,110790.0,110780.0,0.00204843]
[1762088796840,0.3652619,110790.0,110780.0,4.843e-05]
[1762088797041,0.37326189,110790.0,110780.0,4.843e-05]
[1762088797309,0.5722619,110790.0,110780.0,1e-08]
[1762088797520,3.5722619,110790.0,110780.0,1e-08]
[1762088797727,3.5762619,110790.0,110780.0,1e-08]
[1762088798110,3.64549437,110790.0,110780.0,1e-08]
[1762088798504,3.67767657,110790.0,110780.0,1e-08]
[1762088798711,3.68767656,110790.0,110780.0,1e-08]
[1762088800340,0.58078897,110790.0,110780.0,1e-08]
[1762088800618,0.55652253,110790.0,110780.0,1e-08]
[1762088800954,0.55652253,110790.0,110780.0,0.00043805]
[1762088801730,0.58417766,110790.0,110780.0,0.00043805]
[1762088804839,0.38417766,110790.0,110780.0,0.00043805]
[1762088805052,0.52434033,110790.0,110780.0,0.00043805]
[1762088805905,0.58417766,110790.0,110780.0,0.00043805]
[1762088815390,0.56005621,110790.0,110780.0,0.00043805]
[1762088816270,3.6094441,110790.0,110780.0,0.00043805]
[1762088816540,3.6084441,110790.0,110780.0,0.00043805]
[1762088817295,0.6084441,110790.0,110780.0,0.00043805]
[1762088820443,0.5762619,110790.0,110780.0,0.00043805]
[1762088822558,0.54860677,110790.0,110780.0,0.00043805]
[1762088825012,0.1805543,110770.0,110760.0,0.03496805]
[1762088825224,0.22159122,110770.0,110760.0,0.03501647]
[1762088825433,0.24093306,110770.0,110760.0,0.23076707]
[1762088825641,0.28663474,110770.0,110760.0,0.05019647]
[1762088826354,0.26239447,110770.0,110760.0,0.05019647]
[1762088826905,0.26839447,110770.0,110760.0,0.05019647]
[1762088827259,0.27039447,110770.0,110760.0,0.05019647]
[1762088827627,0.27039447,110770.0,110760.0,0.23076707]
[1762088827759,0.27039447,110770.0,110760.0,0.05019647]
[1762088827958,0.22469279,110770.0,110760.0,0.05019647]
[1762088828362,0.24893306,110770.0,110760.0,0.05019647]
[1762088828780,0.24893306,110770.0,110760.0,0.02742647]
[1762088829678,0.24893306,110770.0,110760.0,0.01224647]
[1762088829891,0.24893306,110770.0,110760.0,0.02742647]
[1762088830095,0.30543055,110770.0,110760.0,0.02742647]
[1762088830676,0.30543055,110770.0,110760.0,0.02786462]
[1762088831129,0.30543055,110770.0,110760.0,0.00048657]
[1762088831306,0.33775091,110770.0,110760.0,0.00048657]
[1762088831515,0.36489442,110770.0,110760.0,0.00048657]
[1762088831720,0.33775091,110770.0,110760.0,0.00048657]
[1762088832625,0.32975091,110770.0,110760.0,0.01566657]
[1762088832996,0.33875091,110770.0,110760.0,0.01566657]
[1762088833212,0.30643055,110770.0,110760.0,0.01566657]
[1762088833560,0.30143055,110770.0,110760.0,0.01566657]
[1762088834050,0.31043055,110770.0,110760.0,0.01566657]
[1762088834685,0.31043055,110770.0,110760.0,0.00048657]
[1762088837113,0.31043055,110770.0,110760.0,0.02814657]
[1762088837288,0.31043055,110770.0,110760.0,0.05091657]
[1762088837495,0.31043055,110770.0,110760.0,0.02814657]
[1762088838572,0.31043055,110770.0,110760.0,0.01296657]
[1762088839376,0.31043055,110770.0,110760.0,0.00048657]
[1762088840774,0.31043055,110770.0,110760.0,0.02814657]
[1762088845029,0.31043055,110770.0,110760.0,0.00048657]
[1762088851521,0.31043055,110770.0,110760.0,0.02716657]
[1762088854636,0.31043055,110770.0,110760.0,0.01176657]
[1762088854880,0.31043055,110770.0,110760.0,0.00048657]
[1762088855544,0.31043055,110770.0,110760.0,0.01588657]
[1762088856178,0.31043055,110770.0,110760.0,0.00048657]
[1762088859832,0.31043055,110770.0,110760.0,0.01588657]
[1762088863223,0.31043055,110770.0,110760.0,0.05008657]
[1762088864427,0.31043055,110770.0,110760.0,0.02716657]
[1762088865056,0.31043055,110770.0,110760.0,0.05008657]
[1762088865266,0.31043055,110770.0,110760.0,0.02716657]
[1762088866045,0.25393306,110770.0,110760.0,0.05008657]
[1762088866191,0.22969279,110770.0,110760.0,0.05008657]
[1762088866614,0.25393306,110770.0,110760.0,0.05008657]
[1762088869652,0.25393306,110770.0,110760.0,0.23065717]
[1762088870021,0.22969279,110770.0,110760.0,0.23065717]
[1762088870425,0.27637193,110770.0,110760.0,0.23065717]
[1762088870570,0.27637193,110770.0,110760.0,0.05008657]
[1762088870775,0.27641094,110770.0,110760.0,0.05008657]
[1762088871369,0.27641094,110770.0,110760.0,0.23065717]
[1762088871571,0.0491775,110770.0,110760.0,0.23065717]
[1762088871810,0.02983566,110770.0,110760.0,0.23065717]
[1762088872729,0.01683566,110770.0,110760.0,0.23065717]
[1762088873106,0.008,110770.0,110760.0,0.23065717]
[1762088873698,0.008,110770.0,110760.0,0.25779422]
[1762088877811,0.1885543,110770.0,110760.0,0.07722362]
[1762088878916,0.1805543,110770.0,110760.0,0.25779422]
[1762088879114,0.1915543,110770.0,110760.0,0.25779422]
[1762088879545,0.1915543,110770.0,110760.0,0.07722362]
[1762088879722,0.1915543,110770.0,110760.0,0.25779422]
[1762088880339,0.1915543,110770.0,110760.0,0.07722362]
[1762088880533,0.22876353,110770.0,110760.0,0.07722362]
[1762088880959,0.1915543,110770.0,110760.0,0.07722362]
[1762088883205,0.011,110770.0,110760.0,0.25779422]
[1762088883427,0.1915543,110770.0,110760.0,0.25779422]
[1762088883594,0.1915543,110770.0,110760.0,0.07722362]
[1762088884239,0.1915543,110770.0,110760.0,0.05008657]
[1762088884635,0.2455774,110770.0,110760.0,0.02716657]
[1762088884861,0.29260096,110770.0,110760.0,0.02716657]
[1762088885253,0.29260096,110770.0,110760.0,0.01176657]
[1762088885456,0.28460096,110770.0,110760.0,0.01176657]
[1762088885877,0.29360096,110770.0,110760.0,0.02831657]
[1762088886937,0.27423253,110770.0,110760.0,0.02831657]
[1762088887143,0.29360118,110770.0,110760.0,0.02831657]
[1762088887342,0.29360118,110770.0,110760.0,0.01176657]
[1762088887550,0.29860118,110770.0,110760.0,0.00048657]
[1762088890573,0.29859453,110770.0,110760.0,0.00048657]
[1762088891736,0.325736,110770.0,110760.0,0.00048657]
[1762088903982,0.29808087,110770.0,110760.0,0.05254657]
[1762088904835,0.26087139,110770.0,110760.0,0.05254657]
[1762088906742,0.26087139,110770.0,110760.0,0.23311717]
[1762088906949,0.23372992,110770.0,110760.0,0.05254657]
[1762088910310,0.23373268,110770.0,110760.0,0.05254657]
[1762088910861,0.23373268,110770.0,110760.0,0.23311717]
[1762088911061,0.28029403,110770.0,110760.0,0.23311717]
[1762088911300,0.28029403,110770.0,110760.0,0.05254657]
[1762088912295,0.23373268,110770.0,110760.0,0.23311717]
[1762088913591,0.23373268,110770.0,110760.0,0.05254657]
[1762088913795,0.23373268,110770.0,110760.0,0.23311717]
[1762088914779,0.05317838,110770.0,110760.0,0.23311717]
[1762088914900,0.03381638,110770.0,110760.0,0.23311717]
[1762088916567,0.02181638,110770.0,110760.0,0.23311717]
[1762088916886,0.01681638,110770.0,110760.0,0.23311717]
[1762088917098,0.02181638,110770.0,110760.0,0.23311717]
[1762088917269,0.006,110770.0,110760.0,0.23311717]
[1762088918106,0.006,110770.0,110760.0,0.27584556]
[1762088919326,0.006,110770.0,110760.0,0.23311717]
[1762088920138,0.1865543,110770.0,110760.0,0.23311717]
[1762088929681,0.1865543,110770.0,110760.0,0.05254657]
[1762088929821,0.1865543,110770.0,110760.0,0.23311717]
[1762088930772,0.1865543,110770.0,110760.0,0.05254657]
[1762088933607,0.1865543,110770.0,110760.0,0.23311717]
[1762088935284,0.1865543,110770.0,110760.0,0.05254657]
[1762088940845,0.1865543,110770.0,110760.0,0.23311717]
[1762088941999,0.006,110770.0,110760.0,0.23311717]
[1762088942380,0.1865543,110770.0,110760.0,0.23311717]
[1762088943675,0.1865543,110770.0,110760.0,0.05254657]
[1762088944078,0.1865543,110770.0,110760.0,0.23311717]
[1762088944548,0.1865543,110770.0,110760.0,0.05254657]
[1762088945914,0.1865543,110770.0,110760.0,0.23311717]
[1762088946328,0.006,110770.0,110760.0,0.23311717]
[1762088947233,0.006,110770.0,110760.0,0.27584556]
[1762088947814,0.006,110770.0,110760.0,0.23311717]
[1762088948432,0.1865543,110770.0,110760.0,0.23311717]
[1762088956486,0.006,110770.0,110760.0,0.23311717]
[1762088959684,0.1865543,110770.0,110760.0,0.23311717]
[1762088959877,0.1865543,110770.0,110760.0,0.05254657]
[1762088960080,0.1865543,110770.0,110760.0,0.07060363]
[1762088960283,0.1865543,110770.0,110760.0,0.25117423]
[1762088960462,0.1865543,110770.0,110760.0,0.23311717]
[1762088961604,0.006,110770.0,110760.0,0.27584556]
[1762088964365,0.1865543,110770.0,110760.0,0.27584556]
[1762088965045,0.1865543,110770.0,110760.0,0.23311717]
[1762088968857,0.006,110770.0,110760.0,0.23311717]
[1762088969058,0.1865543,110770.0,110760.0,0.23311717]
[1762088970796,0.006,110770.0,110760.0,0.23311717]
[1762088971690,0.1865543,110770.0,110760.0,0.23311717]
[1762088972056,0.006,110770.0,110760.0,0.23311717]
[1762088972559,0.006,110770.0,110760.0,0.27584556]
[1762088972925,0.1865543,110770.0,110760.0,0.27584556]
[1762088974938,0.1865543,110770.0,110760.0,0.23311717]
[1762088978490,0.1865543,110770.0,110760.0,0.23311717]
[1762088981237,0.1865543,110770.0,110760.0,0.05254657]
[1762088981453,0.20338921,110770.0,110760.0,0.05254657]
[1762088981685,0.22278306,110770.0,110760.0,0.07060363]
[1762088982251,0.20594815,110770.0,110760.0,0.07060363]
[1762088982452,0.20594815,110770.0,110760.0,0.25117423]
[1762088982664,0.1865543,110770.0,110760.0,0.23311717]
[1762088982985,0.006,110770.0,110760.0,0.23311717]
[1762088995335,0.006,110770.0,110760.0,0.3233821]
[1762088996367,0.001,110770.0,110760.0,0.3233821]
[1762088996572,0.22703068,110790.0,110780.0,0.180538]
[1762088996848,0.0633233,110790.0,110780.0,0.2256018]
[1762088997049,0.04394828,110790.0,110780.0,0.231918]
[1762088997288,0.02713337,110790.0,110780.0,0.231918]
[1762088997708,0.03513337,110790.0,110780.0,0.233918]
[1762088997920,0.008,110790.0,110780.0,0.27631475]
[1762088998124,0.008,110790.0,110780.0,0.233918]
[1762088999181,0.011,110790.0,110780.0,0.234918]
[1762089000437,0.1915217,110790.0,110780.0,0.234918]
[1762089000643,0.011,110790.0,110780.0,0.234918]
[1762089000958,0.1915217,110790.0,110780.0,0.234918]
[1762089001194,0.011,110790.0,110780.0,0.234918]
[1762089001396,0.011,110790.0,110780.0,0.27761475]
[1762089005001,0.011,110790.0,110780.0,0.234918]
[1762089005194,0.1915217,110790.0,110780.0,0.234918]
[1762089005951,0.1915217,110790.0,110780.0,0.05438]
[1762089011487,0.1915217,110790.0,110780.0,0.234918]
[1762089011687,0.03813109,110790.0,110780.0,0.234918]
[1762089012146,0.21865279,110790.0,110780.0,0.234918]
[1762089012351,0.03813109,110790.0,110780.0,0.234918]
[1762089012987,0.21865279,110790.0,110780.0,0.234918]
[1762089019016,0.21865279,110790.0,110780.0,0.05438]
[1762089022391,0.29473315,110790.0,110780.0,0.03001]
[1762089024979,0.29473315,110790.0,110780.0,0.003]
[1762089025148,0.32238828,110790.0,110780.0,0.003]
[1762089025355,0.34658798,110790.0,110780.0,0.003]
[1762089025764,0.33858768,110790.0,110780.0,0.001]
[1762089026949,0.33858768,110790.0,110770.0,0.00021905]
[1762089026950,0.180538,110780.0,110770.0,0.00021905]
[1762089027151,0.24895548,110780.0,110770.0,0.01609905]
[1762089027522,0.2683148,110780.0,110770.0,0.00021905]
[1762089027726,0.29545084,110780.0,110770.0,0.01609905]
[1762089028444,0.31145084,110780.0,110770.0,0.01909905]
[1762089028642,0.31145084,110780.0,110770.0,0.03136905]
[1762089029683,0.31145084,110780.0,110770.0,0.00321905]
[1762089030081,0.31145084,110780.0,110770.0,0.01909905]
[1762089030287,0.31143128,110780.0,110770.0,0.01909905]
[1762089032969,0.31143128,110780.0,110770.0,0.00321905]
[1762089034733,0.31143128,110780.0,110770.0,0.01909905]
[1762089036036,0.31143702,110780.0,110770.0,0.01909905]
[1762089039321,0.31143702,110780.0,110770.0,0.03136905]
[1762089039544,0.31143702,110780.0,110770.0,0.05598905]
[1762089041128,0.31143561,110780.0,110770.0,0.05598905]
[1762089041687,0.29464593,110780.0,110770.0,0.03136905]
[1762089041871,0.31143622,110780.0,110770.0,0.03136905]
[1762089045809,0.31143622,110780.0,110770.0,0.05598905]
[1762089046194,0.25982365,110780.0,110770.0,0.05598905]
[1762089049560,0.25983938,110780.0,110770.0,0.05598905]
[1762089056811,0.25987216,110780.0,110770.0,0.05598905]
[1762089058463,0.25987216,110780.0,110770.0,0.23654335]
[1762089058666,0.25987216,110780.0,110770.0,0.05598905]
[1762089059006,0.31355514,110780.0,110770.0,0.05598905]
[1762089059839,0.31355514,110780.0,110770.0,0.23654335]
[1762089062225,0.31355514,110780.0,110770.0,0.05598905]
[1762089062709,0.31355514,110780.0,110770.0,0.23654335]
[1762089064912,0.25987216,110780.0,110770.0,0.23654335]
[1762089069551,0.07933416,110780.0,110770.0,0.23654335]
[1762089069761,0.05997484,110780.0,110770.0,0.23654335]
[1762089070441,0.04313604,110780.0,110770.0,0.23654335]
[1762089070877,0.22367404,110780.0,110770.0,0.23654335]
[1762089071843,0.22367404,110780.0,110770.0,0.26367682]
[1762089072202,0.21337899,110780.0,110770.0,0.08312252]
[1762089072411,0.196538,110780.0,110770.0,0.08312252]
[1762089075518,0.21337244,110780.0,110770.0,0.08312252]
[1762089075691,0.23276582,110780.0,110770.0,0.08312252]
[1762089077935,0.23276582,110780.0,110770.0,0.05598905]
[1762089080943,0.2327611,110780.0,110770.0,0.05598905]
[1762089082062,0.2327611,110780.0,110770.0,0.23654335]
[1762089082251,0.2327611,110780.0,110770.0,0.05598905]
[1762089083022,0.2327611,110780.0,110770.0,0.23654335]
[1762089087228,0.0522231,110780.0,110770.0,0.23654335]
[1762089087384,0.21336772,110780.0,110770.0,0.23654335]
[1762089087597,0.2327611,110780.0,110770.0,0.23654335]
[1762089092257,0.2327611,110780.0,110770.0,0.05598905]
[1762089092704,0.23276404,110780.0,110770.0,0.05598905]
[1762089097486,0.27651263,110780.0,110770.0,0.05598905]
[1762089097687,0.23276404,110780.0,110770.0,0.05598905]
[1762089098760,0.23276404,110780.0,110770.0,0.23654335]
[1762089101755,0.23276882,110780.0,110770.0,0.23654335]
[1762089103528,0.23276882,110780.0,110770.0,0.05598905]
[1762089103734,0.23276882,110780.0,110770.0,0.23654335]
[1762089103949,0.23276882,110780.0,110770.0,0.05598905]
[1762089106045,0.23276882,110780.0,110770.0,0.23654335]
[1762089106953,0.23276866,110780.0,110770.0,0.23654335]
[1762089110022,0.05223066,110780.0,110770.0,0.23654335]
[1762089110227,0.03283728,110780.0,110770.0,0.23654335]
[1762089111785,0.21337528,110780.0,110770.0,0.23654335]
[1762089111936,0.23276769,110780.0,110770.0,0.23654335]
[1762089114342,0.05222969,110780.0,110770.0,0.23654335]
[1762089114545,0.21337431,110780.0,110770.0,0.05598905]
[1762089114746,0.23276769,110780.0,110770.0,0.23654335]
[1762089117151,0.21593138,110780.0,110770.0,0.23654335]
[1762089117348,0.232767,110780.0,110770.0,0.23654335]
[1762089119139,0.052229,110780.0,110770.0,0.23654335]
[1762089119351,0.03283562,110780.0,110770.0,0.23654335]
[1762089121192,0.032832,110780.0,110770.0,0.23654335]
[1762089134249,0.016,110780.0,110770.0,0.23654335]
[1762089135156,0.004,110780.0,110770.0,0.23454335]
[1762089135689,0.42760624,110800.0,110780.0,0.18052176]
[1762089135908,0.42760624,110800.0,110790.0,0.11807493]
[1762089136108,0.42760624,110800.0,110790.0,0.32136663]
[1762089136307,0.42760624,110800.0,110790.0,0.14084493]
[1762089137208,0.44160624,110800.0,110790.0,0.14384493]
[1762089137615,0.44160624,110800.0,110790.0,0.32436663]
[1762089137966,0.44560624,110800.0,110790.0,0.14384493]
[1762089138676,0.19850624,110800.0,110790.0,0.32436663]
[1762089139003,0.19850541,110800.0,110790.0,0.32436663]
[1762089139900,0.018,110800.0,110790.0,0.37604147]
[1762089140924,0.1804901,110810.0,110790.0,0.37304147]
[1762089141131,0.1804901,110810.0,110800.0,0.05058]
[1762089141607,0.1804901,110810.0,110800.0,0.23108541]
[1762089141845,0.1804901,110810.0,110800.0,0.05058]
[1762089142065,0.1804901,110810.0,110800.0,0.06863054]
[1762089142303,0.18097348,110810.0,110800.0,0.06863054]
[1762089142794,0.19597348,110810.0,110800.0,0.25313595]
[1762089143033,0.19597348,110810.0,110800.0,0.05458]
[1762089143465,0.19897348,110810.0,110800.0,0.05558]
[1762089146531,0.23704387,110810.0,110800.0,0.05558]
[1762089148849,0.30081011,110810.0,110800.0,0.005]
[1762089149292,0.3279422,110810.0,110800.0,0.005]
[1762089149718,0.3129422,110810.0,110800.0,0.001]
[1762089149927,0.18050541,110800.0,110790.0,0.03672]
[1762089150156,0.25431334,110800.0,110790.0,0.05219]
[1762089150363,0.24853185,110800.0,110790.0,0.05219]
[1762089150766,0.25888226,110800.0,110790.0,0.05219]
[1762089151203,0.26388226,110800.0,110790.0,0.05319]
[1762089152047,0.27588226,110800.0,110790.0,0.05419]
[1762089153762,0.31200347,110800.0,110790.0,0.05419]
[1762089153976,0.29266781,110800.0,110790.0,0.05419]
[1762089154401,0.29266808,110800.0,110790.0,0.05419]
[1762089154957,0.19750541,110800.0,110790.0,0.05419]
[1762089155613,0.19750541,110800.0,110790.0,0.2347117]
[1762089155814,0.19750541,110800.0,110790.0,0.05419]
[1762089155960,0.19750541,110800.0,110790.0,0.2347117]
[1762089156180,0.19750541,110800.0,110790.0,0.05419]
[1762089156590,0.2353533,110800.0,110790.0,0.05419]
[1762089162841,0.5753533,110800.0,110790.0,0.05419]
[1762089167095,0.53750541,110800.0,110790.0,0.05419]
[1762089167505,0.357,110800.0,110790.0,0.2347117]
[1762089167714,0.19750541,110800.0,110790.0,0.2347117]
[1762089168987,0.19250541,110800.0,110790.0,0.2337117]
[1762089169197,0.012,110800.0,110790.0,0.2337117]
[1762089169398,0.016,110800.0,110790.0,0.2337117]
[1762089169618,0.016,110800.0,110790.0,0.28534907]
[1762089169619,0.012,110800.0,110790.0,0.28534907]
[1762089169819,0.19250541,110800.0,110790.0,0.28534907]
[1762089170047,0.18150541,110800.0,110790.0,0.28534907]
[1762089170218,0.19650541,110800.0,110790.0,0.28734907]
[1762089170881,0.18150541,110800.0,110790.0,0.28534907]
[1762089171320,0.18650541,110800.0,110790.0,0.29034907]
[1762089172073,0.18650541,110800.0,110790.0,0.2387117]
[1762089172271,0.006,110800.0,110790.0,0.2387117]
[1762089172477,0.18650541,110800.0,110790.0,0.2387117]
[1762089174295,0.006,110800.0,110790.0,0.2387117]
[1762089175372,0.18650541,110800.0,110790.0,0.2387117]
[1762089175795,0.18650541,110800.0,110790.0,0.29084907]
[1762089179047,0.18650541,110800.0,110790.0,0.11032737]
[1762089179272,0.18650541,110800.0,110790.0,0.12837954]
[1762089180639,0.18650541,110800.0,110790.0,0.05819]
[1762089193268,0.54335513,110800.0,110790.0,0.05819]
[1762089193482,0.58989417,110800.0,110790.0,0.05819]
[1762089194321,0.58889417,110800.0,110790.0,0.05719]
[1762089194535,0.58389417,110800.0,110790.0,0.05219]
[1762089194761,0.58789417,110800.0,110790.0,0.05519]
[1762089194987,0.59689417,110800.0,110790.0,0.05519]
[1762089195215,0.67620643,110800.0,110790.0,0.05519]
[1762089195439,0.59662813,110800.0,110790.0,0.05519]